fUST/lending_fUST_20251022
["ID","MTS","AMOUNT","RATE_DAILY","PERIOD"]
[392053248,1761120651863,-151.0,0.00047444,120]
[392053249,1761120651872,-151.0,0.00047444,120]
[392053250,1761120651881,-151.0,0.00047444,120]
[392053251,1761120651892,-151.0,0.00047444,120]
[392053252,1761120651904,-151.0,0.00047444,120]
[392053253,1761120651913,-151.0,0.00047444,120]
[392053254,1761120651922,-151.0,0.00047444,7]
[392053255,1761120651932,-151.0,0.00047444,120]
[392053256,1761120651941,-151.533385,0.00047444,120]
[392053257,1761120651950,-151.0,0.00047444,7]
[392053258,1761120651960,-151.0,0.00047444,120]
[392053259,1761120651970,-151.0,0.00047444,120]
[392053260,1761120651979,-151.0,0.00047444,120]
[392053261,1761120651988,-151.0,0.00047444,120]
[392053262,1761120651998,-252.431166,0.00047444,120]
[392053263,1761120652008,-151.0,0.00047444,120]
[392053264,1761120652018,-151.0,0.00047444,120]
[392053265,1761120652027,-151.0,0.00047444,120]
[392053266,1761120652036,-151.0,0.00047444,120]
[392053267,1761120652045,-151.0,0.00047444,120]
[392053268,1761120652054,-151.0,0.00047444,120]
[392053269,1761120652063,-301.582845,0.00047444,120]
[392053270,1761120652072,-151.0,0.00047444,120]
[392053271,1761120652081,-151.0,0.00047444,120]
[392053272,1761120652090,-301.582845,0.00047444,120]
[392053273,1761120652099,-151.0,0.00047444,120]
[392053274,1761120652108,-301.582845,0.00047444,120]
[392053275,1761120652118,-301.582845,0.00047444,120]
[392053276,1761120652128,-151.0,0.00047444,120]
[392053277,1761120652138,-151.0,0.00047444,120]
[392053278,1761120652147,-151.0,0.00047444,120]
[392053279,1761120652157,-153.368467,0.00047444,120]
[392053280,1761120652166,-151.0,0.00047444,120]
[392053281,1761120652175,-151.0,0.00047444,120]
[392053282,1761120652185,-151.0,0.00047444,120]
[392053283,1761120652195,-161.500086,0.00047444,120]
[392053284,1761120652204,-161.500086,0.00047444,120]
[392053285,1761120652213,-161.500086,0.00047444,120]
[392053286,1761120652222,-161.500086,0.00047444,120]
[392053287,1761120652232,-151.0,0.00047444,120]
[392053288,1761120652242,-151.0,0.00047444,120]
[392053289,1761120652251,-151.0,0.00047444,120]
[392053290,1761120652261,-151.0,0.00047444,120]
[392053291,1761120652271,-151.0,0.00047444,120]
[392053292,1761120652280,-151.0,0.00047444,120]
[392053293,1761120652290,-151.0,0.00047444,120]
[392053294,1761120652299,-151.0,0.00047444,120]
[392053295,1761120652309,-151.0,0.00047444,120]
[392053296,1761120652318,-279.309823,0.00047444,120]
[392053297,1761120652327,-151.0,0.00047444,120]
[392053298,1761120652336,-151.0,0.00047444,120]
[392053299,1761120652347,-151.0,0.00047444,120]
[392053300,1761120652357,-151.0,0.00047444,120]
[392053301,1761120652366,-156.060694,0.00047444,120]
[392053302,1761120652375,-155.475804,0.00047444,120]
[392053303,1761120652385,-155.475804,0.00047444,120]
[392053304,1761120652395,-155.475804,0.00047444,120]
[392053305,1761120652405,-155.475804,0.00047444,120]
[392053306,1761120652415,-155.475804,0.00047444,120]
[392053307,1761120652424,-155.475804,0.00047444,120]
[392053308,1761120652433,-155.475804,0.00047444,120]
[392053309,1761120652442,-155.475804,0.00047444,120]
[392053310,1761120652452,-802.194534,0.00047444,120]
[392053311,1761120652461,-802.194534,0.00047444,120]
[392053312,1761120652471,-802.194534,0.00047444,120]
[392053313,1761120652480,-802.194534,0.00047444,120]
[392053314,1761120652490,-802.194534,0.00047444,120]
[392053315,1761120652500,-802.194534,0.00047444,120]
[392053316,1761120652510,-802.194534,0.00047444,120]
[392053317,1761120652519,-802.194534,0.00047444,120]
[392053318,1761120652530,-151.0,0.00047444,120]
[392053319,1761120652540,-151.0,0.00047444,120]
[392053320,1761120652550,-151.0,0.00047444,120]
[392053321,1761120652560,-151.0,0.00047444,120]
[392053322,1761120652574,-152.490635,0.00047444,120]
[392053323,1761120652583,-152.490635,0.00047444,120]
[392053324,1761120652592,-152.490635,0.00047444,120]
[392053325,1761120652601,-152.490635,0.00047444,120]
[392053326,1761120652610,-152.490635,0.00047444,120]
[392053327,1761120652619,-152.490635,0.00047444,120]
[392053328,1761120652629,-152.490635,0.00047444,120]
[392053329,1761120652638,-152.490635,0.00047444,120]
[392053330,1761120652647,-151.0,0.00047444,15]
[392053331,1761120652657,-151.0,0.00047444,15]
[392053332,1761120652667,-151.0,0.00047444,15]
[392053333,1761120652676,-151.0,0.00047444,15]
[392053334,1761120652686,-151.0,0.00047444,15]
[392053335,1761120652696,-151.0,0.00047444,15]
[392053336,1761120652705,-371.122771,0.00047444,120]
[392053337,1761120652714,-371.122771,0.00047444,120]
[392053338,1761120652724,-153.176042,0.00047444,120]
[392053339,1761120652733,-371.122771,0.00047444,120]
[392053340,1761120652743,-6060.611499,0.00047444,120]
[392053341,1761120652753,-371.122771,0.00047444,120]
[392053342,1761120652763,-151.0,0.00047444,120]
[392053343,1761120652793,-6060.611499,0.00047444,120]
[392053344,1761120652802,-151.0,0.00047444,120]
[392053345,1761120652811,-371.122771,0.00047444,120]
[392053346,1761120652820,-151.0,0.00047444,120]
[392053347,1761120652830,-6060.611499,0.00047444,120]
[392053348,1761120652840,-371.122771,0.00047444,120]
[392053349,1761120652849,-151.0,0.00047444,120]
[392053350,1761120652859,-151.0,0.00047444,120]
[392053351,1761120652869,-6060.611499,0.00047444,120]
[392053352,1761120652879,-151.0,0.00047444,120]
[392053353,1761120652888,-1297.42021,0.00047444,120]
[392053354,1761120652897,-371.122771,0.00047444,120]
[392053355,1761120652907,-1297.42021,0.00047444,120]
[392053356,1761120652918,-371.122771,0.00047444,120]
[392053357,1761120652927,-6060.611499,0.00047444,120]
[392053358,1761120652937,-6060.611499,0.00047444,120]
[392053359,1761120652946,-151.0,0.00047444,120]
[392053360,1761120652956,-219.556113,0.00047444,120]
[392053361,1761120652965,-6060.611499,0.00047444,120]
[392053362,1761120652974,-1297.42021,0.00047444,120]
[392053363,1761120652983,-1297.42021,0.00047444,120]
[392053364,1761120652993,-6060.611499,0.00047444,120]
[392053365,1761120653002,-1297.42021,0.00047444,120]
[392053366,1761120653011,-1297.42021,0.00047444,120]
[392053367,1761120653021,-1297.42021,0.00047444,120]
[392053368,1761120653031,-1297.42021,0.00047444,120]
[392053369,1761120653041,-151.0,0.00047444,120]
[392053370,1761120653051,-151.0,0.00047444,120]
[392053371,1761120653060,-152.549706,0.00047444,120]
[392053372,1761120653070,-285.598368,0.00047444,120]
[392053373,1761120653080,-285.598368,0.00047444,120]
[392053374,1761120653090,-285.598368,0.00047444,120]
[392053375,1761120653099,-285.598368,0.00047444,120]
[392053376,1761120653109,-285.598368,0.00047444,120]
[392053377,1761120653119,-285.598368,0.00047444,120]
[392053378,1761120653128,-285.598368,0.00047444,120]
[392053379,1761120653136,-285.598368,0.00047444,120]
[392053380,1761120653146,-151.0,0.00047444,120]
[392053381,1761120653154,-151.0,0.00047444,120]
[392053382,1761120653164,-151.0,0.00047444,120]
[392053383,1761120653173,-151.0,0.00047444,120]
[392053384,1761120653183,-151.0,0.00047444,120]
[392053385,1761120653192,-154.787358,0.00047444,120]
[392053386,1761120653202,-151.0,0.00047444,120]
[392053387,1761120653212,-184.276709,0.00047444,120]
[392053388,1761120653222,-152.32748,0.00047444,120]
[392053389,1761120653231,-151.0,0.00047444,120]
[392053390,1761120653241,-151.0,0.00047444,120]
[392053391,1761120653250,-151.0,0.00047444,120]
[392053392,1761120653260,-151.0,0.00047444,120]
[392053393,1761120653270,-151.0,0.00047444,120]
[392053394,1761120653279,-151.0,0.00047444,120]
[392053395,1761120653288,-231.946279,0.00047444,120]
[392053396,1761120653298,-231.946279,0.00047444,120]
[392053397,1761120653307,-151.0,0.00047444,120]
[392053398,1761120653317,-231.946279,0.00047444,120]
[392053399,1761120653326,-151.0,0.00047444,120]
[392053400,1761120653335,-231.946279,0.00047444,120]
[392053401,1761120653344,-231.946279,0.00047444,120]
[392053402,1761120653353,-231.946279,0.00047444,120]
[392053403,1761120653362,-151.0,0.00047444,120]
[392053404,1761120653372,-151.0,0.00047444,120]
[392053405,1761120653382,-231.946279,0.00047444,120]
[392053406,1761120653391,-231.946279,0.00047444,120]
[392053407,1761120653401,-320.607332,0.00047444,120]
[392053408,1761120653411,-320.607332,0.00047444,120]
[392053409,1761120653420,-320.607332,0.00047444,120]
[392053410,1761120653429,-320.607332,0.00047444,120]
[392053411,1761120653439,-320.607332,0.00047444,120]
[392053412,1761120653448,-320.607332,0.00047444,120]
[392053413,1761120653458,-320.607332,0.00047444,120]
[392053414,1761120653467,-320.607332,0.00047444,120]
[392053415,1761120653477,-411.0,0.00047598,2]
[392053416,1761120653486,-156.0,0.000476,120]
[392053417,1761120653496,-14275.65,0.000477,14]
[392053418,1761120653506,-218.810133,0.00047855,30]
[392053419,1761120653516,-162.593911,0.00047855,30]
[392053420,1761120653525,-314.537196,0.00047873,2]
[392053421,1761120653535,-500.0,0.00047992,60]
[392053422,1761120653545,-1000.0,0.00047999,120]
[392053423,1761120653554,-1000.0,0.00048,120]
[392053424,1761120653565,-2000.0,0.00048,60]
[392053425,1761120653576,-5000.0,0.00048,120]
[392053426,1761120653585,-50064.65943145,0.00048,120]
[392053427,1761120653595,-200.0,0.00048,120]
[392053428,1761120653604,-224.86269,0.000481,120]
[392053429,1761120653614,-150.0,0.00048108,30]
[392053430,1761120653624,-263082.78175457,0.000488,120]
[392053431,1761120653633,-221.82352182,0.000488,120]
[392053432,1761120653643,-2375.26821076,0.000488,120]
[392053433,1761120653652,-499.23,0.000489,120]
[392053434,1761120653662,-1645.21,0.000489,14]
[392053435,1761120653671,-1000.0,0.00048999,120]
[392053436,1761120653681,-1251.63503556,0.00049,60]
[392053437,1761120653690,-311.87881253,0.00049,15]
[392053438,1761120653701,-1000.0,0.00049,120]
[392053439,1761120653710,-2000.0,0.00049,120]
[392053440,1761120653720,-53908.68088192,0.00049,120]
[392053441,1761120653730,-1116.34021072,0.00049,30]
[392053442,1761120653739,-5000.0,0.00049004,30]
[392053443,1761120653749,-340.25,0.00049004,30]
[392053444,1761120653758,-500.0,0.00049088,60]
[392053445,1761120653768,-2000.0,0.000493,48]
[392053446,1761120653777,-9309.03101266,0.00049369,120]
[392053447,1761120653787,-10000.0,0.00049388,120]
[392053448,1761120653796,-300.0,0.000494,14]
[392053449,1761120653806,-300.0,0.000494,14]
[392053450,1761120653815,-300.0,0.000494,14]
[392053451,1761120653825,-300.0,0.000494,14]
[392053452,1761120653834,-300.0,0.000494,14]
[392053453,1761120653844,-436894.20562438,0.00049444,30]
[392053454,1761120653906,-152.62,0.00032856,15]
[392053455,1761120653916,-152.62,0.00033056,60]
[392053456,1761120653925,-500.0,0.00043836,120]
[392053457,1761120653935,-1895.88803373,0.00049444,30]
[392053458,1761120653946,-1896.01578638,0.00049444,30]
[392053459,1761120653957,-5312.57475037,0.00049444,30]
[392053460,1761120653968,-11028.09844254,0.00049444,30]
[392053464,1761121197791,452.635379,0.00013699,2]
[392053465,1761121198003,452.635379,0.00020187,2]
[392053479,1761121532455,556.91,0.00035327,30]
[392053482,1761121668425,8314.32467381,0.00018,2]
[392053534,1761121832186,-666.0,0.00024363,2]
[392053536,1761121832196,-106.9696589,0.00024506,2]
[392053541,1761121832242,-43.0303411,0.00024506,2]
[392053543,1761121832251,-150.0,0.00024649,2]
[392053545,1761121832260,-42205.66103419,0.0002465,2]
[392053547,1761121832270,-403.14601822,0.0002465,2]
[392053549,1761121832279,-159.2201883,0.00024674,2]
[392053551,1761121832289,-6622.47405806,0.00024774,2]
[392053553,1761121832298,-5996.46836013,0.00025,2]
[392053688,1761121838084,-522.35653246,0.00024999,2]
[392053689,1761121838095,-636.82796602,0.00024999,2]
[392053690,1761121838105,-159.68454457,0.00024999,2]
[392053691,1761121838116,-500.0,0.00024999,2]
[392053692,1761121838125,-550.71968396,0.00024999,2]
[392053693,1761121838134,-500.0,0.00024999,2]
[392053694,1761121838143,-402.10697479,0.00024999,2]
[392053695,1761121838152,-487.75018975,0.00024999,2]
[392054001,1761121841236,-12.24981025,0.00024999,2]
[392054002,1761121841245,-500.0,0.00024999,2]
[392054003,1761121841254,-238.61890186,0.00024999,2]
[392054004,1761121841264,-500.0,0.00024999,2]
[392054005,1761121841273,-500.0,0.00024999,2]
[392054006,1761121841282,-500.0,0.00024999,2]
[392054007,1761121841291,-500.0,0.00024999,2]
[392054008,1761121841301,-1689.50668812,0.00025,2]
[392054202,1761121843300,-8473.11578147,0.00025,2]
[392054204,1761121843310,-1241.33497044,0.00025,2]
[392054206,1761121843319,-1.16639357,0.00025,2]
[392054271,1761121846543,-5000.0,0.00024749,2]
[392054272,1761121846553,-208.97060952,0.00025,2]
[392054273,1761121846563,-10364.0,0.00025,2]
[392054274,1761121846572,-600.0,0.00025,2]
[392054275,1761121846584,-9940.34510654,0.00025,2]
[392054276,1761121846593,-176.05069003,0.00025506,2]
[392054277,1761121846602,-525.26777475,0.00026,2]
[392054278,1761121846611,-6380.36581916,0.00026,2]
[392054282,1761122396542,780.41456819,0.0002389,2]
[392054283,1761122396563,4590.10543181,0.0002389,2]
[392054298,1761123001972,200.0,0.00035322,120]
[392054309,1761123032437,-573.97863795,0.00024457,2]
[392054310,1761123032543,-1259.7661281,0.00024457,2]
[392054334,1761123038278,-2622.27390648,0.00024457,2]
[392054335,1761123038332,-543.98132747,0.00024457,2]
[392054336,1761123038342,-172.5,0.00024829,2]
[392054337,1761123038351,-2017.17340017,0.00025495,2]
[392054338,1761123038361,-154.96770746,0.000257,2]
[392054339,1761123038371,-3783.21252457,0.00026,2]
[392054839,1761123049077,436.39767945,0.0002389,2]
[392054863,1761123093825,200.0,0.00035322,30]
[392054868,1761123406345,223.9575,0.00035322,120]
[392054871,1761123555589,50000.0,0.00035322,30]
[392054872,1761123809950,600.0,0.00035322,30]
[392054874,1761124138238,150.0,0.00035322,30]
[392054903,1761124232534,-150.0,0.00025081,2]
[392054904,1761124232544,-150.0,0.00025081,2]
[392054905,1761124232554,-500.0,0.000251,2]
[392054906,1761124232563,-5.7232122,0.00025858,2]
[392054927,1761124238491,-154.2767878,0.00025858,2]
[392054928,1761124238502,-432.91743527,0.00025999,2]
[392054929,1761124238545,-476.58558778,0.00025999,2]
[392055000,1761124244337,-290.49697695,0.00025999,2]
[392055002,1761124244346,-1639.5544336,0.00026,2]
[392055005,1761124244358,-826.96858945,0.00026,2]
[392055015,1761124244443,-4553.92861229,0.00026,2]
[392055055,1761124250445,299851.02,0.00035322,30]
[392055059,1761124618071,407.371841,0.00013699,2]
[392055060,1761124618282,407.371841,0.00020187,2]
[392055139,1761125435860,-611.33987222,0.00024677,2]
[392055140,1761125435912,-417.16503418,0.00024677,2]
[392055150,1761125437645,-3971.4950936,0.00024677,2]
[392055151,1761125437654,-150.0,0.00025052,2]
[392055152,1761125437663,-1143.0,0.00025998,2]
[392055153,1761125437672,-300.0,0.00025999,2]
[392055154,1761125437682,-2715.97002093,0.00026,2]
[392055155,1761125437692,-200.0,0.00026,2]
[392055156,1761125437703,-300.0,0.00026519,30]
[392055157,1761125437713,-300.0,0.00026519,30]
[392055158,1761125437724,-300.0,0.00026519,30]
[392055159,1761125437735,-407.371841,0.00026676,2]
[392055160,1761125437745,-1087.7,0.00028,30]
[392055161,1761125437755,-420.0,0.00028137,2]
[392055162,1761125437764,-10000.0,0.00029,2]
[392055163,1761125437774,-403.14601822,0.00030034,2]
[392055164,1761125437783,-160.0,0.00030034,2]
[392055165,1761125437793,-160.0,0.00030034,2]
[392055166,1761125437804,-160.0,0.00030034,2]
[392055167,1761125437814,-432.0,0.0003045,2]
[392055168,1761125437823,-208.782169,0.00030774,2]
[392055169,1761125437833,-207.3794934,0.00030914,2]
[392055170,1761125437843,-152.62,0.00032356,15]
[392055171,1761125437852,-1021.8388623,0.000325,120]
[392055172,1761125437862,-152.62,0.00032556,15]
[392055173,1761125437872,-500.0,0.00032877,5]
[392055174,1761125437881,-152.62,0.00032956,60]
[392055175,1761125437890,-1038.999999,0.00033,30]
[392055176,1761125437899,-1084.49504662,0.00033151,5]
[392055177,1761125437908,-152.62,0.00033156,60]
[392055178,1761125437917,-152.236046,0.00033165,30]
[392055179,1761125437927,-151.0,0.00033165,30]
[392055180,1761125437937,-407.371841,0.00033165,2]
[392055181,1761125437947,-152.62,0.00033256,60]
[392055182,1761125437956,-152.62,0.00033356,60]
[392055183,1761125437965,-152.62,0.00033456,60]
[392055184,1761125437974,-152.62,0.00033556,60]
[392055185,1761125437985,-178.38727221,0.00033635,2]
[392055186,1761125437994,-152.62,0.00033656,60]
[392055187,1761125438009,-269.02726963,0.00033735,2]
[392055188,1761125438019,-151.0,0.00033735,30]
[392055189,1761125438170,-151.0,0.00033735,30]
[392055190,1761125438182,-151.0,0.00033735,30]
[392055191,1761125438192,-518.968084,0.00033735,30]
[392055192,1761125438202,-151.0,0.00033735,30]
[392055193,1761125438212,-518.968084,0.00033735,30]
[392055194,1761125438221,-151.0,0.00033735,30]
[392055195,1761125438233,-518.968084,0.00033735,30]
[392055196,1761125438242,-320.877813,0.00033735,30]
[392055197,1761125438252,-320.877813,0.00033735,30]
[392055198,1761125438262,-518.968084,0.00033735,30]
[392055199,1761125438272,-320.877813,0.00033735,30]
[392055200,1761125438282,-151.0,0.00033735,30]
[392055201,1761125438292,-320.877813,0.00033735,30]
[392055202,1761125438301,-151.0,0.00033735,30]
[392055203,1761125438311,-151.0,0.00033735,30]
[392055204,1761125438320,-200.987542,0.00033735,30]
[392055205,1761125438330,-151.0,0.00033735,30]
[392055206,1761125438340,-151.0,0.00033735,30]
[392055207,1761125438349,-151.0,0.00033735,30]
[392055208,1761125438358,-151.0,0.00033735,30]
[392055209,1761125438368,-151.0,0.00033735,30]
[392055210,1761125438377,-157.374066,0.00033735,30]
[392055211,1761125438390,-153.144065,0.00033735,30]
[392055212,1761125438401,-238.245485,0.00033735,30]
[392055213,1761125438411,-2424.244599,0.00033735,30]
[392055214,1761125438421,-2424.244599,0.00033735,30]
[392055215,1761125438431,-151.0,0.00033735,30]
[392055216,1761125438442,-2424.244599,0.00033735,30]
[392055217,1761125438451,-151.0,0.00033735,30]
[392055218,1761125438462,-2424.244599,0.00033735,30]
[392055219,1761125438471,-151.0,0.00033735,30]
[392055220,1761125438481,-151.0,0.00033735,30]
[392055221,1761125438492,-151.0,0.00033735,30]
[392055222,1761125438501,-151.0,0.00033735,30]
[392055223,1761125438511,-154.396697,0.00033735,30]
[392055224,1761125438520,-151.0,0.00033735,30]
[392055225,1761125438530,-151.0,0.00033735,30]
[392055226,1761125438540,-151.0,0.00033735,30]
[392055227,1761125438551,-151.0,0.00033735,30]
[392055228,1761125438561,-151.0,0.00033735,30]
[392055229,1761125438572,-500.0,0.00033756,60]
[392055230,1761125438584,-152.62,0.00033756,60]
[392055231,1761125438595,-378.01188609,0.00033793,2]
[392055232,1761125438607,-306.76,0.00033794,3]
[392055233,1761125438618,-153.38,0.00033794,3]
[392055234,1761125438629,-460.14,0.00033794,3]
[392055235,1761125438641,-306.76,0.00033794,3]
[392055236,1761125438654,-151.0,0.00033794,30]
[392055237,1761125438665,-155.317597,0.00033794,30]
[392055238,1761125438675,-151.0,0.00033794,30]
[392055239,1761125438686,-151.0,0.00033794,30]
[392055240,1761125438696,-151.0,0.00033794,30]
[392055241,1761125438705,-151.0,0.00033794,30]
[392055242,1761125438716,-151.0,0.00033794,15]
[392055243,1761125438726,-157.244721,0.00033794,15]
[392055244,1761125438741,-154.907856,0.00033794,30]
[392055245,1761125438751,-197.111223,0.00033794,30]
[392055246,1761125438762,-151.0,0.00033794,30]
[392055247,1761125438774,-2424.244599,0.00033794,30]
[392055248,1761125438785,-2424.244599,0.00033794,30]
[392055249,1761125438795,-151.0,0.00033794,30]
[392055250,1761125438806,-2424.244599,0.00033794,30]
[392055251,1761125438816,-151.0,0.00033794,30]
[392055252,1761125438826,-2424.244599,0.00033794,30]
[392055253,1761125438836,-151.0,0.00033794,30]
[392055254,1761125438847,-151.0,0.00033794,30]
[392055255,1761125438856,-151.0,0.00033794,30]
[392055256,1761125438870,-151.0,0.00033794,30]
[392055257,1761125438879,-151.0,0.00033794,30]
[392055258,1761125438889,-194.570237,0.00033794,30]
[392055259,1761125438899,-1338.91,0.00033794,10]
[392055260,1761125438910,-1115.76,0.00033794,10]
[392055261,1761125438920,-151.0,0.00033794,30]
[392055262,1761125438930,-194.18282726,0.00033803,7]
[392055263,1761125438940,-23391.9822441,0.00033804,2]
[392055264,1761125438950,-1101.72177038,0.00033804,2]
[392055265,1761125438959,-151.0,0.00033804,30]
[392055266,1761125438968,-151.0,0.00033804,30]
[392055267,1761125438978,-151.0,0.00033804,30]
[392055268,1761125438993,-151.0,0.00033804,30]
[392055269,1761125439002,-151.0,0.00033804,30]
[392055270,1761125439012,-151.0,0.00033804,30]
[392055271,1761125439022,-180.949707,0.00033804,30]
[392055272,1761125439032,-180.949707,0.00033804,30]
[392055273,1761125439043,-180.949707,0.00033804,30]
[392055274,1761125439054,-151.0,0.00033804,30]
[392055275,1761125439064,-180.949707,0.00033804,30]
[392055276,1761125439074,-151.0,0.00033804,30]
[392055277,1761125439083,-152.136938,0.00033804,30]
[392055278,1761125439093,-151.0,0.00033804,30]
[392055279,1761125439103,-151.0,0.00033804,30]
[392055280,1761125439113,-158.509883,0.00033804,30]
[392055281,1761125439123,-151.0,0.00033804,30]
[392055282,1761125439132,-151.0,0.00033804,30]
[392055283,1761125439142,-151.0,0.00033804,30]
[392055284,1761125439152,-151.0,0.00033804,30]
[392055285,1761125439163,-151.0,0.00033804,30]
[392055287,1761125439173,-151.0,0.00033804,30]
[392055288,1761125439183,-153.045476,0.00033804,30]
[392055289,1761125439194,-151.0,0.00033804,30]
[392055290,1761125439203,-151.0,0.00033804,30]
[392055291,1761125439213,-152.749649,0.00033804,30]
[392055292,1761125439223,-151.0,0.00033804,30]
[392055293,1761125439234,-151.0,0.00033804,30]
[392055294,1761125439244,-151.0,0.00033804,30]
[392055295,1761125439254,-151.0,0.00033804,30]
[392055296,1761125439264,-151.0,0.00033804,30]
[392055297,1761125439273,-151.0,0.00033804,30]
[392055299,1761125439282,-151.0,0.00033804,30]
[392055300,1761125439292,-151.0,0.00033804,30]
[392055301,1761125439301,-151.0,0.00033804,30]
[392055302,1761125439311,-151.0,0.00033804,30]
[392055303,1761125439320,-151.0,0.00033804,30]
[392055305,1761125439330,-152.805463,0.00033804,30]
[392055306,1761125439339,-151.0,0.00033804,30]
[392055307,1761125439348,-151.0,0.00033804,30]
[392055308,1761125439357,-151.0,0.00033804,30]
[392055309,1761125439367,-151.0,0.00033804,30]
[392055311,1761125439376,-151.0,0.00033804,30]
[392055314,1761125439386,-151.0,0.00033804,30]
[392055317,1761125439399,-151.0,0.00033804,30]
[392055320,1761125439408,-156.807157,0.00033804,30]
[392055323,1761125439417,-151.0,0.00033804,30]
[392055325,1761125439426,-295.240572,0.00033804,30]
[392055328,1761125439436,-151.0,0.00033804,30]
[392055331,1761125439445,-242.549118,0.00033804,30]
[392055334,1761125439455,-151.0,0.00033804,15]
[392055338,1761125439468,-151.0,0.00033804,15]
[392055341,1761125439479,-151.0,0.00033804,15]
[392055344,1761125439491,-151.0,0.00033804,15]
[392055345,1761125439500,-151.0,0.00033804,30]
[392055347,1761125439509,-151.0,0.00033804,30]
[392055349,1761125439518,-151.0,0.00033804,30]
[392055351,1761125439527,-151.0,0.00033804,30]
[392055353,1761125439536,-151.0,0.00033804,30]
[392055355,1761125439546,-151.0,0.00033804,30]
[392055357,1761125439556,-151.0,0.00033804,30]
[392055359,1761125439567,-151.0,0.00033804,30]
[392055361,1761125439576,-151.0,0.00033804,30]
[392055363,1761125439586,-151.0,0.00033804,30]
[392055365,1761125439595,-151.0,0.00033804,30]
[392055366,1761125439604,-518.968084,0.00033804,30]
[392055367,1761125439613,-151.0,0.00033804,30]
[392055369,1761125439623,-518.968084,0.00033804,30]
[392055371,1761125439632,-151.0,0.00033804,30]
[392055372,1761125439642,-518.968084,0.00033804,30]
[392055373,1761125439651,-518.968084,0.00033804,30]
[392055374,1761125439660,-151.0,0.00033804,30]
[392055375,1761125439670,-151.0,0.00033804,30]
[392055376,1761125439679,-518.968084,0.00033804,30]
[392055377,1761125439688,-151.0,0.00033804,30]
[392055378,1761125439697,-518.968084,0.00033804,30]
[392055379,1761125439707,-151.0,0.00033804,30]
[392055380,1761125439717,-518.968084,0.00033804,30]
[392055381,1761125439726,-518.968084,0.00033804,30]
[392055382,1761125439738,-250.982162,0.00033804,30]
[392055383,1761125439747,-320.877813,0.00033804,30]
[392055384,1761125439757,-320.877813,0.00033804,30]
[392055385,1761125439767,-320.877813,0.00033804,30]
[392055386,1761125439777,-518.968084,0.00033804,30]
[392055387,1761125439787,-320.877813,0.00033804,30]
[392055388,1761125439797,-518.968084,0.00033804,30]
[392055389,1761125439806,-320.877813,0.00033804,30]
[392055390,1761125439815,-518.968084,0.00033804,30]
[392055391,1761125439824,-320.877813,0.00033804,30]
[392055392,1761125439833,-518.968084,0.00033804,30]
[392055393,1761125439842,-320.877813,0.00033804,30]
[392055394,1761125439851,-320.877813,0.00033804,30]
[392055395,1761125439861,-518.968084,0.00033804,30]
[392055396,1761125439870,-518.968084,0.00033804,30]
[392055397,1761125439881,-518.968084,0.00033804,30]
[392055398,1761125439890,-320.877813,0.00033804,30]
[392055399,1761125439900,-153.772411,0.00033804,30]
[392055400,1761125439909,-518.968082,0.00033804,30]
[392055401,1761125439919,-320.877813,0.00033804,30]